bitfinex/quotes_BTCUSD_20241208
["timestamp","ask_amount","ask_price","bid_price","bid_amount"]
[1733648569966,0.0057296,99160.0,99159.0,0.28155551]
[1733648572884,0.0017296,99160.0,99159.0,0.28155551]
[1733648573111,0.0027296,99160.0,99159.0,0.28155551]
[1733648573406,0.0057296,99160.0,99159.0,0.31675771]
[1733648573658,0.0017296,99160.0,99159.0,0.33155551]
[1733648573863,0.0017296,99160.0,99159.0,0.41455551]
[1733648574075,0.0017296,99160.0,99159.0,0.41655551]
[1733648574494,0.0017296,99160.0,99159.0,0.95470794]
[1733648574733,0.0017296,99160.0,99159.0,1.0481582]
[1733648574968,0.0017296,99160.0,99159.0,0.82198558]
[1733648575193,0.0017296,99160.0,99159.0,1.04816301]
[1733648575418,0.0017296,99160.0,99159.0,0.82198558]
[1733648575641,0.0006328,99180.0,99179.0,0.18149]
[1733648575870,0.0006328,99180.0,99179.0,0.28252754]
[1733648576103,0.0006328,99180.0,99179.0,0.37981951]
[1733648576361,0.0006328,99180.0,99179.0,0.46181951]
[1733648576811,0.00221024,99180.0,99179.0,0.46481951]
[1733648577034,0.00221024,99180.0,99179.0,0.46781951]
[1733648577262,0.00121024,99180.0,99179.0,0.68781951]
[1733648577485,0.00221024,99180.0,99179.0,0.68781951]
[1733648577733,0.00221024,99180.0,99179.0,0.77813718]
[1733648577960,0.00221024,99180.0,99179.0,0.79328757]
[1733648578463,0.00221024,99180.0,99179.0,0.7029699]
[1733648580240,0.00221024,99180.0,99179.0,0.6799699]
[1733648584056,0.0017338,99200.0,99189.0,0.281471]
[1733648584295,0.00182997,99190.0,99189.0,0.61290051]
[1733648585418,0.00182997,99190.0,99189.0,0.6231675]
[1733648585845,0.00182997,99190.0,99189.0,0.6271675]
[1733648586093,0.00182997,99190.0,99189.0,0.6732675]
[1733648586313,0.00182997,99190.0,99189.0,0.6692675]
[1733648586504,0.00282997,99190.0,99189.0,0.6732675]
[1733648586753,0.00182997,99190.0,99189.0,0.6722675]
[1733648587218,0.00282997,99190.0,99189.0,0.6732675]
[1733648587457,0.00100097,99190.0,99189.0,0.6782675]
[1733648587671,0.00100097,99190.0,99189.0,0.69846605]
[1733648588579,0.00100097,99190.0,99189.0,0.49846605]
[1733648588824,0.00100097,99190.0,99189.0,0.11802951]
[1733648588825,0.00200097,99190.0,99189.0,0.11802951]
[1733648589066,0.00200097,99190.0,99189.0,0.018]
[1733648589509,0.0017338,99200.0,99189.0,0.00100801]
[1733648589510,0.181453,99199.0,99189.0,0.00100801]
[1733648589727,0.181453,99199.0,99189.0,0.013]
[1733648589728,0.001,99190.0,99189.0,0.013]
[1733648589971,0.0762,99198.0,99189.0,0.02354707]
[1733648590193,0.0762,99198.0,99189.0,0.01954707]
[1733648590414,0.0762,99198.0,99189.0,0.02254707]
[1733648590639,0.0762,99198.0,99189.0,0.02354707]
[1733648591541,0.0762,99198.0,99189.0,0.02054707]
[1733648591761,0.0762,99198.0,99190.0,0.0157541]
[1733648593131,0.00105293,99197.0,99190.0,0.001]
[1733648593337,0.0762,99198.0,99190.0,0.001]
[1733648593563,0.181464,99193.0,99190.0,0.001]
[1733648593860,0.228068,99191.0,99190.0,0.001]
[1733648594887,0.228068,99191.0,99189.0,9.897e-05]
[1733648595539,0.231068,99191.0,99189.0,9.897e-05]
[1733648595778,0.228068,99191.0,99189.0,9.897e-05]
[1733648596298,0.25175293,99190.0,99189.0,9.897e-05]
[1733648596477,0.39732951,99190.0,99189.0,9.897e-05]
[1733648597251,0.39732951,99190.0,99170.0,0.0008644]
[1733648597252,0.478804,99171.0,99170.0,0.0008644]
[1733648597481,0.57883351,99171.0,99170.0,0.00144184]
[1733648597750,0.57883351,99171.0,99170.0,0.00057744]
[1733648597956,0.65486696,99171.0,99170.0,0.00057744]
[1733648598740,0.65486696,99171.0,99150.0,0.0008645]
[1733648598741,0.477341,99151.0,99150.0,0.0008645]
[1733648598949,0.181559,99141.0,99093.0,0.0818]
[1733648599171,0.43158851,99141.0,99093.0,0.0818]
[1733648599362,0.45458851,99141.0,99094.0,0.05]
[1733648599628,0.45458851,99141.0,99103.0,0.181628]
[1733648600560,0.53086524,99141.0,99103.0,0.181628]
[1733648600996,0.54093421,99141.0,99103.0,0.181628]
[1733648601209,0.54093421,99141.0,99103.0,0.363256]
[1733648601429,0.54093421,99141.0,99108.0,0.181619]
[1733648601650,0.54293421,99141.0,99109.0,0.00100883]
[1733648601886,0.43283573,99141.0,99118.0,0.1816]
[1733648602073,0.45913856,99141.0,99113.0,0.00100878]
[1733648602545,0.45913856,99141.0,99117.0,0.181602]
[1733648602753,0.45913856,99141.0,99118.0,0.00100875]
[1733648602988,0.02657673,99141.0,99127.0,0.181584]
[1733648603197,0.03162966,99141.0,99123.0,0.181592]
[1733648603436,0.03162966,99141.0,99118.0,0.00100874]
[1733648603672,0.13165917,99141.0,99101.0,0.181632]
[1733648604148,0.13165917,99141.0,99107.0,0.18162]
[1733648604368,0.27865917,99141.0,99107.0,0.18162]
[1733648604593,0.34930624,99141.0,99108.0,0.00100881]
[1733648604811,0.34930624,99141.0,99101.0,0.00100889]
[1733648604812,0.44775425,99141.0,99101.0,0.00100889]
[1733648605023,0.44275425,99141.0,99101.0,0.00100889]
[1733648605237,0.44175425,99141.0,99101.0,0.00100889]
[1733648605461,0.44675425,99141.0,99101.0,0.00100889]
[1733648605679,0.44275425,99141.0,99101.0,0.00100889]
[1733648605888,0.45075425,99141.0,99101.0,0.00100889]
[1733648606118,0.35730624,99141.0,99105.0,0.181625]
[1733648606334,0.35930624,99141.0,99106.0,0.00100889]
[1733648606573,0.35930624,99141.0,99113.0,0.181609]
[1733648606762,0.35930624,99141.0,99114.0,0.00100881]
[1733648607148,0.35930624,99141.0,99117.0,0.181602]
[1733648607355,0.35930624,99141.0,99114.0,0.00100881]
[1733648610818,0.35930624,99141.0,99110.0,0.0010088]
[1733648611282,0.35930624,99141.0,99104.0,0.181627]
[1733648611745,0.35930624,99141.0,99109.0,0.181618]
[1733648611998,0.35930624,99141.0,99114.0,0.181607]
[1733648612239,0.35930624,99141.0,99109.0,0.181618]
[1733648612455,0.35930624,99141.0,99109.0,0.18262687]
[1733648613195,0.35930624,99141.0,99140.0,0.00012972]
[1733648614633,0.01057673,99141.0,99140.0,0.00012972]
[1733648614891,0.01162966,99141.0,99140.0,0.00012972]
[1733648615813,0.03357673,99141.0,99140.0,0.00012972]
[1733648616499,0.01057673,99141.0,99140.0,0.00012972]
[1733648617691,0.01162966,99141.0,99140.0,0.00012972]
[1733648618147,0.00362966,99141.0,99140.0,0.00012972]
[1733648618362,0.00162966,99141.0,99140.0,0.00012972]
[1733648618586,0.00857673,99141.0,99140.0,0.00012972]
[1733648618803,0.00257673,99141.0,99140.0,0.00012972]
[1733648619548,0.00757673,99141.0,99140.0,0.00012972]
[1733648620010,0.00957673,99141.0,99140.0,0.00012972]
[1733648621115,0.00257673,99141.0,99140.0,0.00012972]
[1733648621341,0.00057673,99141.0,99140.0,0.00012972]
[1733648621590,0.00557673,99141.0,99140.0,0.00012972]
[1733648621777,0.00057673,99141.0,99140.0,0.00012972]
[1733648622473,0.00257673,99141.0,99140.0,0.00012972]
[1733648624281,0.00057673,99141.0,99140.0,0.00012972]
[1733648624495,0.00057673,99141.0,99140.0,0.00112972]
[1733648624963,0.00057673,99141.0,99140.0,0.00312972]
[1733648627473,0.00057673,99141.0,99140.0,0.00112972]
[1733648627714,0.00057673,99141.0,99140.0,0.00212972]
[1733648628181,0.00057673,99141.0,99140.0,0.00312972]
[1733648633505,0.08167673,99141.0,99140.0,0.00312972]
[1733648633723,0.37975917,99141.0,99140.0,0.00312972]
[1733648633943,0.37975917,99141.0,99130.0,0.0008648]
[1733648633944,0.181577,99131.0,99130.0,0.0008648]
[1733648634133,0.18262993,99131.0,99130.0,0.0008648]
[1733648634898,0.28265944,99131.0,99130.0,0.0008648]
[1733648635109,0.32802985,99131.0,99130.0,0.0008648]
[1733648635340,0.34226406,99131.0,99130.0,0.0008648]
[1733648635560,0.34326406,99131.0,99130.0,0.0008648]
[1733648636414,0.42436406,99131.0,99130.0,0.0008648]
[1733648636874,1.20927694,99131.0,99130.0,8e-07]
[1733648637089,0.72557694,99131.0,99130.0,8e-07]
[1733648637575,0.67457694,99131.0,99130.0,8e-07]
[1733648637804,0.72057694,99131.0,99130.0,8e-07]
[1733648638035,0.72557694,99131.0,99130.0,8e-07]
[1733648638257,0.73457694,99131.0,99086.0,0.00100908]
[1733648638500,0.73457694,99131.0,99078.0,0.229574]
[1733648638501,0.181651,99091.0,99078.0,0.0817]
[1733648638714,0.181651,99091.0,99078.0,0.08270917]
[1733648638938,0.181651,99091.0,99070.0,0.0008649]
[1733648638939,0.181651,99091.0,99073.0,0.181682]
[1733648639608,0.181651,99091.0,99074.0,0.0010092]
[1733648639826,0.20570393,99091.0,99070.0,0.0008649]
[1733648640042,0.204651,99091.0,99090.0,0.00103817]
[1733648641193,0.3150462,99091.0,99090.0,0.00103817]
[1733648642584,0.3913462,99091.0,99090.0,0.00103817]
[1733648642798,0.46882693,99091.0,99090.0,0.00103817]
[1733648643028,0.47082693,99091.0,99090.0,0.00103817]
[1733648643952,0.47182693,99091.0,99090.0,0.00103817]
[1733648644393,0.46882693,99091.0,99090.0,0.00103817]
[1733648644887,0.47182693,99091.0,99090.0,0.00103817]
[1733648645134,0.47082693,99091.0,99090.0,0.00103817]
[1733648645360,0.47582693,99091.0,99090.0,0.00103817]
[1733648645608,0.62582693,99091.0,99090.0,0.00103817]
[1733648645806,1.15952693,99091.0,99090.0,0.00103817]
[1733648647108,1.0820462,99091.0,99090.0,0.00103817]
[1733648649718,0.5483462,99091.0,99090.0,0.00103817]
[1733648651057,0.4720462,99091.0,99090.0,0.00103817]
[1733648652960,0.31168051,99091.0,99090.0,0.00103817]
[1733648654097,0.03,99091.0,99090.0,0.00103817]
[1733648654321,0.03105293,99091.0,99090.0,0.00103817]
[1733648655872,0.007,99091.0,99090.0,0.00103817]
[1733648656791,0.007,99091.0,99090.0,0.08253817]
[1733648657005,0.007,99091.0,99090.0,0.12884728]
[1733648657277,0.007,99091.0,99090.0,0.12884727]
[1733648657494,0.007,99091.0,99090.0,0.24867886]
[1733648657495,0.005,99091.0,99090.0,0.24867886]
[1733648657762,0.03,99092.0,99091.0,0.263151]
[1733648658003,0.03,99092.0,99091.0,0.36318051]
[1733648658222,0.0017322,99120.0,99116.0,0.264804]
[1733648658450,0.0017322,99120.0,99116.0,0.0832]
[1733648658687,0.0017322,99120.0,99117.0,0.181603]
[1733648658936,0.0017322,99120.0,99107.0,0.0832]
[1733648659152,0.181619,99109.0,99096.0,0.0832]
[1733648659399,0.0017322,99120.0,99096.0,0.0832]
[1733648659400,0.00105293,99118.0,99097.0,0.18164]
[1733648659612,0.181609,99114.0,99098.0,0.181638]
[1733648659840,0.00105293,99113.0,99098.0,0.181638]
[1733648660511,0.18266293,99113.0,99098.0,0.181638]
[1733648660945,0.00105293,99113.0,99098.0,0.00100899]
[1733648661170,0.1833302,99120.0,99097.0,0.001]
[1733648661171,0.0017322,99120.0,99109.0,0.181618]
[1733648661388,0.18265293,99119.0,99102.0,0.00100893]
[1733648661610,0.36425293,99119.0,99103.0,0.18263793]
[1733648662047,0.181603,99117.0,99104.0,0.181627]
[1733648662272,0.181603,99117.0,99104.0,0.18263593]
[1733648663837,0.363206,99117.0,99104.0,0.00200893]
[1733648664299,0.181603,99117.0,99104.0,0.00200893]
[1733648664511,0.03,99108.0,99104.0,0.00200893]
[1733648664727,0.03,99108.0,99104.0,0.001]
[1733648666091,0.03,99108.0,99099.0,0.18264396]
[1733648666308,0.03,99108.0,99104.0,0.001]
[1733648666748,0.03,99108.0,99102.0,0.181631]
[1733648666990,0.031,99108.0,99102.0,0.18263995]
[1733648667217,0.03,99108.0,99104.0,0.001]
[1733648667905,0.03,99108.0,99102.0,0.18263995]
[1733648668538,0.03,99108.0,99102.0,0.00100895]
[1733648668753,0.03,99108.0,99101.0,0.181632]
[1733648668967,0.03,99108.0,99102.0,0.00100895]
[1733648669459,0.03,99108.0,99103.0,0.181629]
[1733648669677,0.03,99108.0,99103.0,0.18263795]
[1733648669913,0.03,99108.0,99103.0,0.18263794]
[1733648670131,0.03,99108.0,99103.0,0.36426694]
[1733648670357,0.03,99108.0,99104.0,0.00100894]
[1733648670671,0.03,99108.0,99106.0,0.077]
[1733648670890,0.0017322,99120.0,99116.0,0.181605]
[1733648671113,0.0017322,99120.0,99117.0,0.0010088]
[1733648671799,0.0017322,99120.0,99118.0,0.181601]
[1733648672008,0.0017322,99120.0,99118.0,0.1826098]
[1733648672901,0.0017322,99120.0,99112.0,0.181612]
[1733648673158,0.0067322,99120.0,99116.0,0.181605]
[1733648673374,0.0017322,99120.0,99116.0,0.181605]
[1733648673803,0.0017322,99120.0,99118.0,0.001]
[1733648674014,0.0017322,99120.0,99116.0,0.181605]
[1733648674200,0.0017322,99120.0,99116.0,0.182605]
[1733648674666,0.03,99118.0,99116.0,0.182605]
[1733648675775,0.0017322,99120.0,99116.0,0.182605]
[1733648675989,0.0017322,99120.0,99116.0,0.181605]
[1733648676224,0.0017322,99120.0,99112.0,0.181612]
[1733648676460,0.0017322,99120.0,99116.0,0.001]
[1733648676951,0.0017322,99120.0,99116.0,0.002]
[1733648677201,0.0017322,99120.0,99116.0,0.001]
[1733648677430,0.0017322,99120.0,99112.0,0.181612]
[1733648677648,0.0017322,99120.0,99114.0,0.181609]
[1733648679179,0.0017322,99120.0,99116.0,0.001]
[1733648679864,0.0017322,99120.0,99114.0,0.182609]
[1733648680115,0.0017322,99120.0,99118.0,0.1816]
[1733648680547,0.0017322,99120.0,99119.0,0.0010088]
[1733648682179,0.0017322,99120.0,99119.0,0.0786088]
[1733648683055,0.0017322,99120.0,99119.0,0.0796088]
[1733648683527,0.0027322,99120.0,99119.0,0.0796088]
[1733648683747,0.0027322,99120.0,99119.0,0.17862951]
[1733648683996,0.0027322,99120.0,99119.0,0.23133825]
[1733648684205,0.0027322,99120.0,99119.0,0.23032951]
[1733648685072,0.0027322,99120.0,99119.0,0.24045504]
[1733648685761,0.0027322,99120.0,99119.0,0.29045504]
[1733648686697,0.0027322,99120.0,99119.0,0.44045504]
[1733648687864,0.0027322,99120.0,99119.0,0.4479958]
[1733648690597,0.0027322,99120.0,99119.0,0.44799117]
[1733648694099,0.0027322,99120.0,99119.0,0.44045504]
[1733648694331,0.0027322,99120.0,99119.0,0.44798917]
[1733648695512,0.0027322,99120.0,99119.0,0.34928917]
[1733648695745,0.0027322,99120.0,99119.0,0.33916364]
[1733648695969,0.0027322,99120.0,99119.0,0.18916364]
[1733648697330,0.0027322,99120.0,99119.0,0.19017228]
[1733648697570,0.0027322,99120.0,99119.0,0.004]
[1733648697815,0.0027322,99120.0,99119.0,0.00500875]
[1733648699121,0.0027322,99120.0,99119.0,0.004]
[1733648700237,0.0017322,99120.0,99119.0,0.003]
[1733648701330,0.0017322,99120.0,99119.0,0.021461]
[1733648701829,0.0017322,99120.0,99119.0,0.018461]
[1733648702070,0.0017322,99120.0,99119.0,0.001]
[1733648702297,0.0017322,99120.0,99119.0,0.002]
[1733648702529,0.0017322,99120.0,99110.0,0.0008661]
[1733648702530,0.1833302,99120.0,99112.0,0.00100882]
[1733648702764,0.1833302,99120.0,99119.0,0.004]
[1733648703454,0.1833302,99120.0,99119.0,0.002]
[1733648703672,0.1833302,99120.0,99119.0,0.001]
[1733648705490,0.1833302,99120.0,99119.0,0.002]
[1733648705952,0.29522212,99120.0,99119.0,0.002]
[1733648706166,0.2587302,99120.0,99119.0,0.002]
[1733648706598,0.3050302,99120.0,99119.0,0.002]
[1733648707924,0.31518435,99120.0,99119.0,0.001]
[1733648708170,0.31518435,99120.0,99110.0,0.0008661]
[1733648708392,0.181614,99111.0,99110.0,0.0008661]
[1733648709976,0.182614,99111.0,99110.0,0.0008661]
[1733648710150,0.186614,99111.0,99110.0,0.0008661]
[1733648713223,0.005,99111.0,99110.0,0.0008661]
[1733648714571,0.001,99111.0,99110.0,0.0008661]
[1733648714787,0.181605,99116.0,99110.0,0.0018661]
[1733648715008,0.181605,99116.0,99110.0,0.0028661]
[1733648715612,0.181605,99116.0,99110.0,0.0008661]
[1733648715870,0.181613,99112.0,99110.0,0.0008661]
[1733648716078,0.182605,99116.0,99110.0,0.0008661]
[1733648716079,0.181614,99111.0,99110.0,0.0008661]
[1733648717692,0.18265993,99115.0,99110.0,0.0008661]
[1733648717912,0.18265993,99115.0,99110.0,0.0018661]
[1733648718337,0.181601,99119.0,99110.0,0.0028661]
[1733648718615,0.181601,99119.0,99110.0,0.0018661]
[1733648719071,0.001,99115.0,99110.0,0.0018661]
[1733648719324,0.0017322,99120.0,99110.0,0.0018661]
[1733648719325,0.0017322,99120.0,99114.0,0.181608]
[1733648719555,0.003,99119.0,99114.0,0.181608]
[1733648719786,0.004,99119.0,99114.0,0.181608]
[1733648720028,0.004,99119.0,99118.0,0.181601]
[1733648720684,0.004,99119.0,99118.0,0.18260972]
[1733648720926,0.0017322,99120.0,99118.0,0.28263923]
[1733648721146,0.0047322,99120.0,99119.0,0.17683819]
[1733648721356,0.0017322,99120.0,99119.0,0.22253819]
[1733648721576,0.0017322,99120.0,99119.0,0.22152951]
[1733648722671,0.0027322,99120.0,99119.0,0.22352951]
[1733648722902,0.0027322,99120.0,99119.0,0.22652951]
[1733648724943,0.0027322,99120.0,99119.0,0.42652951]
[1733648725637,0.0027322,99120.0,99119.0,0.47652951]
[1733648725886,0.0027322,99120.0,99119.0,0.42352951]
[1733648726099,0.0017322,99120.0,99119.0,0.47452951]
[1733648726311,0.0017322,99120.0,99119.0,0.56490053]
[1733648726751,0.0017322,99120.0,99119.0,0.47452951]
[1733648727486,2e-07,99120.0,99119.0,0.99471547]
[1733648728152,0.0017318,99150.0,99149.0,0.257344]
[1733648728384,0.0017318,99150.0,99149.0,0.35737351]
[1733648729486,0.00230853,99150.0,99149.0,0.35737351]
[1733648730201,0.00230853,99150.0,99143.0,0.363109]
[1733648730419,0.00230853,99150.0,99147.0,0.181546]
[1733648730634,0.00230853,99150.0,99148.0,0.0181546]
[1733648730847,0.00330853,99150.0,99149.0,0.008]
[1733648731105,0.00230853,99150.0,99149.0,0.004]
[1733648731570,0.00330853,99150.0,99143.0,0.009]
[1733648731788,0.18155,99146.0,99129.0,0.181581]
[1733648732021,0.18155,99146.0,99130.0,0.29976661]
[1733648732249,0.00403007,99145.0,99130.0,0.29976661]
[1733648732485,0.17888123,99144.0,99130.0,0.11818761]
[1733648732711,0.18291022,99144.0,99131.0,0.181577]
[1733648732956,0.18291022,99144.0,99133.0,0.181574]
[1733648733852,0.03,99135.0,99132.0,0.0170441]
[1733648734296,0.00402046,99134.0,99133.0,0.003]
[1733648734735,0.00402046,99134.0,99132.0,0.0170441]
[1733648734984,0.00402046,99134.0,99133.0,0.003]
[1733648735238,0.00402046,99134.0,99112.0,0.181612]
[1733648735239,0.00507339,99134.0,99112.0,0.181612]
[1733648735470,0.00105293,99133.0,99113.0,0.00100879]
[1733648735684,0.00105293,99133.0,99113.0,0.18261879]
[1733648735685,0.181594,99122.0,99113.0,0.18261879]
[1733648735893,0.181587,99126.0,99113.0,0.18261879]
[1733648736105,0.00400104,99121.0,99113.0,0.18261879]
[1733648736353,0.181587,99126.0,99115.0,0.181607]
[1733648736565,0.181587,99126.0,99116.0,0.0010088]
[1733648736566,0.00400104,99120.0,99116.0,0.0010088]
[1733648736790,0.00400104,99119.0,99116.0,0.0010088]
[1733648737238,0.181587,99126.0,99116.0,0.0010088]
[1733648737725,0.00400104,99125.0,99116.0,0.0040088]
[1733648737938,0.18159,99124.0,99117.0,0.01977661]
[1733648738145,0.181592,99123.0,99112.0,0.10002951]
[1733648738364,0.181592,99123.0,99116.0,0.004]
[1733648738579,0.00400104,99122.0,99112.0,0.10002951]
[1733648738865,0.00400104,99122.0,99110.0,0.0008661]
[1733648738866,0.0825,99120.0,99110.0,0.0008661]
[1733648739354,0.181599,99119.0,99112.0,0.001]
[1733648739564,0.181609,99115.0,99112.0,0.001]
[1733648739997,0.181609,99115.0,99110.0,0.0008661]
[1733648739998,0.00400104,99114.0,99110.0,0.0008661]
[1733648740467,0.00400104,99114.0,99110.0,0.0028661]
[1733648741134,0.00400104,99114.0,99110.0,0.0038661]
[1733648742400,0.00400104,99114.0,99110.0,0.0018661]
[1733648744154,0.18161,99113.0,99110.0,0.0018661]
[1733648744365,0.00400104,99114.0,99110.0,0.0018661]
[1733648744599,0.00399071,99112.0,99110.0,0.0018661]
[1733648744766,0.00399177,99113.0,99111.0,0.01834901]
[1733648744973,0.023,99119.0,99111.0,0.01834901]
[1733648745169,0.18559497,99118.0,99111.0,0.01834901]
[1733648745771,0.00399397,99118.0,99111.0,0.01834901]
[1733648745952,0.00399397,99118.0,99112.0,0.01685319]
[1733648747097,0.00499397,99118.0,99112.0,0.01685319]
[1733648747308,0.00399397,99118.0,99112.0,0.01685319]
[1733648747779,0.00499397,99118.0,99112.0,0.01685319]
[1733648749498,0.00499397,99118.0,99115.0,0.181606]
[1733648749703,0.00499397,99118.0,99117.0,0.181603]
[1733648749877,0.001,99118.0,99117.0,0.181603]
[1733648750572,0.023,99130.0,99121.0,0.181595]
[1733648750800,0.023,99134.0,99121.0,0.181595]
[1733648751027,0.1283,99136.0,99121.0,0.181595]
[1733648751028,0.00411286,99125.0,99121.0,0.36319]
[1733648751238,0.00105293,99142.0,99123.0,0.181592]
[1733648751445,0.18156,99141.0,99125.0,0.181588]
[1733648751667,0.18156,99141.0,99125.0,0.18259672]
[1733648751890,0.264053,99145.0,99131.0,0.181576]
[1733648752101,0.264053,99145.0,99136.0,0.181567]
[1733648752102,0.00057737,99145.0,99136.0,0.181567]
[1733648752316,0.00412696,99144.0,99136.0,0.181567]
[1733648753792,0.00412696,99144.0,99141.0,0.181558]
[1733648754012,0.00057737,99145.0,99141.0,0.181558]
[1733648754235,0.006,99144.0,99141.0,0.181558]
[1733648754434,0.006,99144.0,99143.0,0.181555]
[1733648755417,0.004,99144.0,99143.0,0.181555]
[1733648755617,0.00057737,99145.0,99143.0,0.181555]
[1733648755834,0.00657737,99145.0,99142.0,0.01685319]
[1733648756049,0.00657737,99145.0,99134.0,0.181572]
[1733648756254,0.0041324,99144.0,99135.0,0.0010086]
[1733648756470,0.004,99144.0,99135.0,0.0010086]
[1733648756683,0.002,99144.0,99135.0,0.0010086]
[1733648756911,0.002,99144.0,99136.0,0.181568]
[1733648757096,0.00457737,99145.0,99136.0,0.1825766]
[1733648757374,0.00413133,99143.0,99137.0,0.363132]
[1733648757578,0.0061324,99144.0,99137.0,0.363132]
[1733648757787,0.002,99144.0,99137.0,0.363132]
[1733648758013,0.00413133,99143.0,99137.0,0.181566]
[1733648758435,0.00413133,99143.0,99141.0,0.181559]
[1733648758791,0.00057737,99145.0,99141.0,0.181559]
[1733648758994,0.00257737,99145.0,99141.0,0.181559]
[1733648759211,0.004,99144.0,99141.0,0.181559]
[1733648759594,0.003,99143.0,99141.0,0.363118]
[1733648759804,0.005,99143.0,99141.0,0.181559]
[1733648759995,0.002,99143.0,99141.0,0.181559]
[1733648760380,0.00457737,99145.0,99141.0,0.181559]
[1733648760641,0.002,99144.0,99137.0,0.181566]
[1733648760854,0.003,99143.0,99137.0,0.181566]
[1733648761053,0.003,99143.0,99139.0,0.181563]
[1733648761893,0.003,99143.0,99131.0,0.0832]
[1733648762091,0.002,99144.0,99134.0,0.181572]
[1733648762298,0.002,99144.0,99135.0,0.0010086]
[1733648762517,0.00057737,99145.0,99135.0,0.0010086]
[1733648762518,0.00395806,99143.0,99141.0,0.002]
[1733648762777,0.00395806,99143.0,99135.0,0.0010086]
[1733648762997,0.00057737,99145.0,99141.0,0.001]
[1733648763215,0.00395821,99142.0,99141.0,0.001]
[1733648763445,0.00395821,99142.0,99135.0,0.1825786]
[1733648763669,0.00057737,99145.0,99141.0,0.006]
[1733648764050,0.00057737,99145.0,99141.0,0.002]
[1733648764567,0.00057737,99145.0,99142.0,0.01845786]
[1733648765427,0.181544,99149.0,99142.0,0.01845786]
[1733648765871,0.181544,99149.0,99142.0,0.02145786]
[1733648766094,0.363088,99149.0,99142.0,0.02145786]
[1733648766308,0.363088,99149.0,99142.0,0.02245786]
[1733648766532,0.363088,99149.0,99142.0,0.004]
[1733648766766,0.363088,99149.0,99136.0,0.0010086]
[1733648767015,0.363088,99149.0,99142.0,0.002]
[1733648767238,0.181544,99149.0,99142.0,0.002]
[1733648768271,0.181544,99149.0,99136.0,0.0010086]
[1733648768488,0.181544,99149.0,99136.0,0.0020086]
[1733648768704,0.181544,99149.0,99136.0,0.0030086]
[1733648768916,0.181544,99149.0,99136.0,0.0010086]
[1733648769130,0.181544,99149.0,99142.0,0.001]
[1733648769340,0.181544,99149.0,99142.0,0.002]
[1733648769565,0.181548,99147.0,99142.0,0.001]
[1733648769822,0.204566,99137.0,99136.0,0.001]
[1733648770040,0.204566,99137.0,99110.0,0.0008661]
[1733648770041,0.181611,99113.0,99110.0,0.0008661]
[1733648770264,0.00394034,99112.0,99110.0,0.0008661]
[1733648770484,0.00394034,99112.0,99111.0,0.0183495]
[1733648770751,0.181598,99120.0,99111.0,0.0183495]
[1733648770968,0.181598,99120.0,99110.0,0.0008661]
[1733648771191,0.00394034,99119.0,99110.0,0.0008661]
[1733648771616,0.181594,99122.0,99110.0,0.0008661]
[1733648771617,0.181598,99120.0,99110.0,0.00144347]
[1733648771828,0.00392721,99118.0,99110.0,0.00144347]
[1733648772063,0.00392614,99117.0,99111.0,0.01840734]
[1733648772505,0.023,99121.0,99111.0,0.01840734]
[1733648772731,0.0039262,99116.0,99111.0,0.01840734]
[1733648772957,0.023,99121.0,99111.0,0.01840734]
[1733648773216,0.00392584,99115.0,99112.0,0.01679486]
[1733648773452,0.023,99121.0,99112.0,0.01679486]
[1733648773692,0.181598,99120.0,99111.0,0.001]
[1733648773940,0.18552601,99120.0,99111.0,0.001]
[1733648774393,0.00392801,99120.0,99111.0,0.00200891]
[1733648774608,0.00392801,99120.0,99112.0,0.11954566]
[1733648774817,0.181573,99134.0,99120.0,0.181597]
[1733648775250,0.181576,99132.0,99120.0,0.181597]
[1733648775705,0.00394132,99131.0,99120.0,0.181597]
[1733648776534,0.00394132,99131.0,99120.0,0.182597]
[1733648776758,0.00394132,99131.0,99128.0,0.181582]
[1733648776979,0.00594132,99131.0,99128.0,0.181582]
[1733648777240,0.00594132,99131.0,99129.0,0.0762]
[1733648777241,0.002,99131.0,99129.0,0.0762]
[1733648777471,0.002,99131.0,99130.0,0.181579]
[1733648778119,0.003,99131.0,99130.0,0.181579]
[1733648778614,0.002,99131.0,99130.0,0.181579]
[1733648778842,0.181552,99145.0,99130.0,0.18458766]
[1733648779063,0.00394679,99144.0,99134.0,0.181572]
[1733648779546,0.181555,99143.0,99131.0,0.00100866]
[1733648779779,0.00394679,99144.0,99130.0,0.005]
[1733648779978,0.023,99146.0,99130.0,0.005]
[1733648779979,0.181577,99132.0,99130.0,0.002]
[1733648780448,0.00393785,99131.0,99130.0,0.002]
[1733648780940,0.181579,99130.0,99120.0,0.0008655]
[1733648781170,0.00393785,99131.0,99120.0,0.0008655]
[1733648781397,0.0039378,99129.0,99120.0,0.0008655]
[1733648781618,0.0479,99133.0,99120.0,0.0008655]
[1733648781829,0.0039378,99128.0,99120.0,0.0008655]
[1733648782050,0.0479,99133.0,99120.0,0.0008655]
[1733648782468,0.0479,99133.0,99120.0,0.0038655]
[1733648782469,0.00393997,99132.0,99120.0,0.0038655]
[1733648782678,0.00393997,99132.0,99120.0,0.0028655]
[1733648782889,0.181583,99128.0,99120.0,0.0028655]
[1733648783107,0.181583,99128.0,99120.0,0.0078655]
[1733648783377,0.0039346,99127.0,99120.0,0.0078655]
[1733648783623,0.0039346,99127.0,99121.0,0.01904823]
[1733648785144,0.181576,99132.0,99121.0,0.02104823]
[1733648785555,0.00393977,99131.0,99121.0,0.02104823]
[1733648786192,0.001,99127.0,99121.0,0.007]
[1733648786412,0.00393977,99131.0,99123.0,0.0757]
[1733648786633,0.0898864,99152.0,99123.0,0.0757]
[1733648786634,0.00393437,99126.0,99124.0,0.43262822]
[1733648786840,0.0769,99167.0,99146.0,0.181548]
[1733648786841,0.181517,99164.0,99146.0,0.181548]
[1733648787060,0.181532,99156.0,99146.0,0.0757]
[1733648787270,0.181517,99164.0,99146.0,0.0757]
[1733648787271,0.00446043,99149.0,99146.0,0.0757]
[1733648787526,0.181517,99164.0,99147.0,0.363096]
[1733648787739,0.181516,99165.0,99147.0,0.36410452]
[1733648788002,0.181516,99165.0,99149.0,0.181544]
[1733648788237,0.181517,99165.0,99149.0,0.18255247]
[1733648788468,0.00184721,99150.0,99149.0,0.28258198]
[1733648788692,0.00184721,99150.0,99149.0,0.28157351]